[Event "2. Itzehoer Schach Open"]
[Site "Itzehoe, Germany"]
[Date "2023.04.29"]
[Round "1.11"]
[White "Hansen, Fridolin"]
[Black "Kitschke, Heiko"]
[Result "0-1"]
[TimeControl "90 min / 40 Züge + 30 min + 30 Sek pro Zug"]
[WhiteElo "1764"]
[BlackElo "2027"]

1. e4 {[%clk 01:30:55]} {[%emt 00:00:05]} c5 {[%clk 01:30:25]} {[%emt
00:00:36]} 2. Nc3 {[%clk 01:31:10]} {[%emt 00:00:14]} Nc6 {[%clk 01:29:51]}
{[%emt 00:01:04]} 3. g3 {[%clk 01:31:05]} {[%emt 00:00:35]} g6 {[%clk
01:29:13]} {[%emt 00:01:07]} 4. Bg2 {[%clk 01:31:04]} {[%emt 00:00:31]} Bg7
{[%clk 01:28:47]} {[%emt 00:00:57]} 5. Nge2 {[%clk 01:31:04]} {[%emt 00:00:30]}
e6 {[%clk 01:28:16]} {[%emt 00:01:01]} 6. d3 {[%clk 01:29:30]} {[%emt
00:02:04]} Nge7 {[%clk 01:27:09]} {[%emt 00:01:35]} 7. Be3 {[%clk 01:26:34]}
{[%emt 00:03:27]} Nd4 {[%clk 01:26:27]} {[%emt 00:01:12]} 8. O-O {[%clk
01:23:46]} {[%emt 00:03:19]} O-O {[%clk 01:25:32]} {[%emt 00:01:26]} 9. Rb1
{[%clk 01:22:57]} {[%emt 00:01:19]} d6 {[%clk 01:20:21]} {[%emt 00:05:39]} 10.
Qd2 {[%clk 01:18:20]} {[%emt 00:05:08]} Re8 {[%clk 01:16:50]} {[%emt 00:04:00]}
11. b4 {[%clk 01:13:34]} {[%emt 00:05:17]} Nxe2+ {[%clk 01:14:17]} {[%emt
00:03:03]} 12. Nxe2 {[%clk 01:13:47]} {[%emt 00:00:17]} cxb4 {[%clk 01:14:37]}
{[%emt 00:00:09]} 13. Rxb4 {[%clk 01:09:52]} {[%emt 00:04:26]} Nc6 {[%clk
01:14:29]} {[%emt 00:00:38]} 14. Rb3 {[%clk 01:06:46]} {[%emt 00:03:36]} Qc7
{[%clk 01:12:23]} {[%emt 00:02:34]} 15. c4 {[%clk 00:57:07]} {[%emt 00:10:11]}
Bd7 {[%clk 01:08:50]} {[%emt 00:04:03]} 16. Rc1 {[%clk 00:53:00]} {[%emt
00:04:37]} b6 {[%clk 01:05:46]} {[%emt 00:03:34]} 17. Rbb1 {[%clk 00:46:10]}
{[%emt 00:07:20]} Rac8 {[%clk 01:01:59]} {[%emt 00:04:17]} 18. d4 {[%clk
00:42:56]} {[%emt 00:03:45]} Rb8 {[%clk 01:01:12]} {[%emt 00:01:16]} 19. c5
{[%clk 00:41:53]} {[%emt 00:01:32]} bxc5 {[%clk 00:59:59]} {[%emt 00:01:43]} 20.
dxc5 {[%clk 00:42:06]} {[%emt 00:00:18]} dxc5 {[%clk 00:57:59]} {[%emt
00:02:30]} 21. Bxc5 {[%clk 00:41:16]} {[%emt 00:01:21]} Rxb1 {[%clk 00:49:05]}
{[%emt 00:09:23]} 22. Rxb1 {[%clk 00:41:39]} {[%emt 00:00:07]} Bc8 {[%clk
00:49:11]} {[%emt 00:00:21]} 23. Qe3 {[%clk 00:36:32]} {[%emt 00:05:41]} Qa5
{[%clk 00:42:58]} {[%emt 00:06:41]} 24. a3 {[%clk 00:33:27]} {[%emt 00:03:36]}
Ba6 {[%clk 00:41:21]} {[%emt 00:02:04]} 25. Bf1 {[%clk 00:26:45]} {[%emt
00:07:15]} Ne5 {[%clk 00:34:15]} {[%emt 00:07:34]} 26. Bb4 {[%clk 00:18:50]}
{[%emt 00:08:27]} Qc7 {[%clk 00:21:37]} {[%emt 00:13:07]} 27. Rc1 {[%clk
00:16:33]} {[%emt 00:02:48]} Qd7 {[%clk 00:18:59]} {[%emt 00:03:04]} 28. Nf4
{[%clk 00:14:31]} {[%emt 00:02:36]} Bxf1 {[%clk 00:14:18]} {[%emt 00:05:10]} 29.
Kxf1 {[%clk 00:14:08]} {[%emt 00:00:53]} Ng4 {[%clk 00:12:15]} {[%emt
00:02:32]} 30. Qe2 {[%clk 00:14:10]} {[%emt 00:00:30]} e5 {[%clk 00:11:54]}
{[%emt 00:00:51]} 31. Nd5 {[%clk 00:13:57]} {[%emt 00:00:43]} Nxh2+ {[%clk
00:10:37]} {[%emt 00:01:47]} 32. Kg2 {[%clk 00:14:13]} {[%emt 00:00:14]} Ng4
{[%clk 00:10:43]} {[%emt 00:00:24]} 33. Rc7 {[%clk 00:14:14]} {[%emt 00:00:29]}
Qe6 {[%clk 00:09:36]} {[%emt 00:01:36]} 34. Qb5 {[%clk 00:13:09]} {[%emt
00:01:36]} a6 {[%clk 00:07:58]} {[%emt 00:02:07]} 35. Qa4 {[%clk 00:12:39]}
{[%emt 00:01:01]} Kh8 {[%clk 00:06:42]} {[%emt 00:01:43]} 36. Re7 {[%clk
00:08:32]} {[%emt 00:04:40]} Rxe7 {[%clk 00:05:17]} {[%emt 00:01:55]} 37. Nxe7
{[%clk 00:08:53]} {[%emt 00:00:09]} Nf6 {[%clk 00:05:18]} {[%emt 00:00:26]} 38.
Qa5 {[%clk 00:07:00]} {[%emt 00:02:26]} h6 {[%clk 00:03:21]} {[%emt 00:02:26]}
39. Qd8+ {[%clk 00:04:34]} {[%emt 00:02:57]} Kh7 {[%clk 00:02:09]} {[%emt
00:01:39]} 40. Qa8 {[%clk 00:00:49]} {[%emt 00:04:17]} Qc4 {[%clk 00:01:46]}
{[%emt 00:00:51]} 41. Kg1 {[%clk 00:27:16]} {[%emt 00:04:05]} Qd4 {[%clk
00:18:30]} {[%emt 00:13:45]} 42. Qxa6 {[%clk 00:19:35]} {[%emt 00:08:13]} Nxe4
{[%clk 00:18:28]} {[%emt 00:00:31]} 43. Qe2 {[%clk 00:18:56]} {[%emt 00:01:10]}
Nxg3 {[%clk 00:18:39]} {[%emt 00:00:19]} 44. Qf3 {[%clk 00:18:58]} {[%emt
00:00:27]} Nh5 {[%clk 00:17:29]} {[%emt 00:01:39]} 45. Qxf7 {[%clk 00:17:07]}
{[%emt 00:02:22]} Qg4+ {[%clk 00:16:13]} {[%emt 00:01:46]} 46. Kh1 {[%clk
00:13:50]} {[%emt 00:03:48]} Nf6 {[%clk 00:12:06]} {[%emt 00:04:35]} 47. Bc5
{[%clk 00:08:09]} {[%emt 00:06:12]} h5 {[%clk 00:09:04]} {[%emt 00:03:32]} 48.
a4 {[%clk 00:05:18]} {[%emt 00:03:22]} Qd1+ {[%clk 00:05:25]} {[%emt 00:04:09]}
49. Kg2 {[%clk 00:05:07]} {[%emt 00:00:41]} Qxa4 {[%clk 00:05:22]} {[%emt
00:00:34]} 50. Qxg6+ {[%clk 00:05:24]} {[%emt 00:00:12]} Kh8 {[%clk 00:00:00]}
{[%emt 00:00:55]} 51. Nf5 {[%clk 00:02:53]} {[%emt 00:05:19]} Qg4+ {[%clk
00:04:31]} {[%emt 00:01:46]} 52. Qxg4 {[%clk 00:03:14]} {[%emt 00:00:09]} Nxg4
{[%clk 00:04:21]} {[%emt 00:00:39]} 53. Nxg7 {[%clk 00:01:30]} {[%emt
00:02:15]} Kxg7 {[%clk 00:04:35]} {[%emt 00:00:15]} 54. Kg3 {[%clk 00:01:09]}
{[%emt 00:00:52]} Kg6 {[%clk 00:04:47]} {[%emt 00:00:17]} 55. Kh4 {[%clk
00:00:57]} {[%emt 00:00:43]} Nh6 {[%clk 00:04:38]} {[%emt 00:00:38]} 56. Bb6
{[%clk 00:00:53]} {[%emt 00:00:35]} Nf5+ {[%clk 00:04:40]} {[%emt 00:00:28]} 57.
Kh3 {[%clk 00:01:17]} {[%emt 00:00:06]} Kg5 {[%clk 00:04:59]} {[%emt 00:00:11]}
58. Bd8+ {[%clk 00:00:48]} {[%emt 00:00:59]} Kf4 {[%clk 00:05:02]} {[%emt
00:00:26]} 59. Bc7 {[%clk 00:01:04]} {[%emt 00:00:14]} Ke4 {[%clk 00:04:47]}
{[%emt 00:00:45]} 60. Kg2 {[%clk 00:00:52]} {[%emt 00:00:43]} Nd4 {[%clk
00:04:08]} {[%emt 00:01:08]} 61. Kg3 {[%clk 00:00:47]} {[%emt 00:00:36]} Nf5+
{[%clk 00:04:02]} {[%emt 00:00:36]} 62. Kg2 {[%clk 00:01:13]} {[%emt 00:00:04]}
Kd5 {[%clk 00:03:02]} {[%emt 00:01:30]} 63. Kf3 {[%clk 00:01:00]} {[%emt
00:00:43]} Nd6 {[%clk 00:02:55]} {[%emt 00:00:37]} 64. Kg3 {[%clk 00:00:56]}
{[%emt 00:00:34]} Ne4+ {[%clk 00:03:09]} {[%emt 00:00:15]} 65. Kh4 {[%clk
00:01:07]} {[%emt 00:00:20]} Nf6 {[%clk 00:03:05]} {[%emt 00:00:33]} 66. Kg3
{[%clk 00:01:08]} {[%emt 00:00:30]} Kd4 {[%clk 00:03:09]} {[%emt 00:00:25]} 67.
Kf3 {[%clk 00:00:41]} {[%emt 00:00:58]} e4+ {[%clk 00:03:34]} {[%emt 00:00:05]}
68. Ke2 {[%clk 00:00:38]} {[%emt 00:00:33]} Nd5 {[%clk 00:03:37]} {[%emt
00:00:25]} 69. Bg3 {[%clk 00:00:33]} {[%emt 00:00:36]} Ne7 {[%clk 00:03:31]}
{[%emt 00:00:36]} 70. f4 {[%clk 00:00:31]} {[%emt 00:00:33]} Nf5 {[%clk
00:02:51]} {[%emt 00:01:10]} 71. Bh2 {[%clk 00:00:33]} {[%emt 00:00:28]} e3
{[%clk 00:03:03]} {[%emt 00:00:18]} 0-1

[Event "2. Itzehoer Schach Open"]
[Site "Itzehoe, Germany"]
[Date "2023.04.29"]
[Round "1.21"]
[White "Thomsen, Flemming"]
[Black "Schiller, Thomas"]
[Result "1/2-1/2"]
[TimeControl "90 min / 40 Züge + 30 min + 30 Sek pro Zug"]
[WhiteElo "1517"]
[BlackElo "1678"]

1. d4 {[%clk 01:30:54]} {[%emt 00:00:05]} d5 {[%clk 01:30:50]} {[%emt
00:00:10]} 2. Nf3 {[%clk 01:31:14]} {[%emt 00:00:11]} Nc6 {[%clk 01:31:03]}
{[%emt 00:00:16]} 3. e3 {[%clk 01:31:07]} {[%emt 00:00:37]} Bg4 {[%clk
01:31:05]} {[%emt 00:00:29]} 4. Nbd2 {[%clk 01:31:02]} {[%emt 00:00:34]} e6
{[%clk 01:30:37]} {[%emt 00:00:58]} 5. c3 {[%clk 01:30:48]} {[%emt 00:00:45]}
Nf6 {[%clk 01:30:46]} {[%emt 00:00:21]} 6. Bd3 {[%clk 01:29:02]} {[%emt
00:02:16]} e5 {[%clk 01:28:35]} {[%emt 00:02:41]} 7. dxe5 {[%clk 01:25:21]}
{[%emt 00:04:11]} Nxe5 {[%clk 01:26:33]} {[%emt 00:02:32]} 8. Qa4+ {[%clk
01:20:10]} {[%emt 00:05:41]} Bd7 {[%clk 01:23:17]} {[%emt 00:03:46]} 9. Bb5
{[%clk 01:18:04]} {[%emt 00:02:35]} Nd3+ {[%clk 01:18:10]} {[%emt 00:05:37]} 10.
Ke2 {[%clk 01:08:54]} {[%emt 00:09:41]} Nxc1+ {[%clk 01:13:26]} {[%emt
00:05:13]} 11. Raxc1 {[%clk 01:07:40]} {[%emt 00:01:44]} c6 {[%clk 01:13:29]}
{[%emt 00:00:28]} 12. Bd3 {[%clk 01:07:43]} {[%emt 00:00:27]} Bd6 {[%clk
01:12:12]} {[%emt 00:01:47]} 13. h3 {[%clk 01:02:38]} {[%emt 00:05:34]} O-O
{[%clk 01:09:06]} {[%emt 00:03:36]} 14. g4 {[%clk 00:59:36]} {[%emt 00:03:33]}
c5 {[%clk 01:02:03]} {[%emt 00:07:32]} 15. Qc2 {[%clk 00:55:34]} {[%emt
00:04:32]} g6 {[%clk 00:43:23]} {[%emt 00:19:11]} 16. Qb1 {[%clk 00:47:31]}
{[%emt 00:08:33]} Re8 {[%clk 00:42:04]} {[%emt 00:01:48]} 17. Rcg1 {[%clk
00:37:03]} {[%emt 00:10:59]} Bc6 {[%clk 00:40:34]} {[%emt 00:02:00]} 18. Kd1
{[%clk 00:33:51]} {[%emt 00:03:42]} Ne4 {[%clk 00:32:58]} {[%emt 00:08:04]} 19.
Bxe4 {[%clk 00:23:44]} {[%emt 00:10:38]} dxe4 {[%clk 00:33:07]} {[%emt
00:00:21]} 20. Nh2 {[%clk 00:22:42]} {[%emt 00:01:33]} Qf6 {[%clk 00:31:36]}
{[%emt 00:02:00]} 21. Rf1 {[%clk 00:21:32]} {[%emt 00:01:40]} Rad8 {[%clk
00:31:41]} {[%emt 00:00:26]} 22. Kc1 {[%clk 00:20:05]} {[%emt 00:01:56]} Rd7
{[%clk 00:23:07]} {[%emt 00:09:05]} 23. Qc2 {[%clk 00:16:59]} {[%emt 00:03:35]}
Red8 {[%clk 00:23:17]} {[%emt 00:00:21]} 24. Nxe4 {[%clk 00:16:43]} {[%emt
00:00:46]} Bxe4 {[%clk 00:21:25]} {[%emt 00:02:22]} 25. Qxe4 {[%clk 00:16:57]}
{[%emt 00:00:15]} Bxh2 {[%clk 00:21:49]} {[%emt 00:00:06]} 26. Rxh2 {[%clk
00:17:04]} {[%emt 00:00:23]} Qd6 {[%clk 00:22:11]} {[%emt 00:00:09]} 27. Rhh1
{[%clk 00:16:08]} {[%emt 00:01:25]} Qa6 {[%clk 00:20:14]} {[%emt 00:02:27]} 28.
a3 {[%clk 00:13:48]} {[%emt 00:02:50]} Qe2 {[%clk 00:19:36]} {[%emt 00:01:08]}
29. Re1 {[%clk 00:11:33]} {[%emt 00:02:46]} Qd2+ {[%clk 00:18:49]} {[%emt
00:01:16]} 30. Kb1 {[%clk 00:11:56]} {[%emt 00:00:08]} Qxf2 {[%clk 00:18:23]}
{[%emt 00:00:55]} 31. Ref1 {[%clk 00:11:15]} {[%emt 00:01:12]} 1/2-1/2

[Event "2. Itzehoer Schach Open"]
[Site "Itzehoe, Germany"]
[Date "2023.04.29"]
[Round "1.18"]
[White "Kosanke, Stefan"]
[Black "Hielscher, Ursula"]
[Result "0-1"]
[TimeControl "90 min / 40 Züge + 30 min + 30 Sek pro Zug"]
[WhiteElo "1933"]
[BlackElo "1702"]

1. d4 {[%clk 01:30:56]} {[%emt 00:00:03]} d5 {[%clk 01:30:56]} {[%emt
00:00:04]} 2. Nf3 {[%clk 01:31:16]} {[%emt 00:00:11]} Nf6 {[%clk 01:31:22]}
{[%emt 00:00:04]} 3. g3 {[%clk 01:31:41]} {[%emt 00:00:05]} g6 {[%clk
01:31:39]} {[%emt 00:00:13]} 4. Bg2 {[%clk 01:32:06]} {[%emt 00:00:05]} Bg7
{[%clk 01:32:07]} {[%emt 00:00:02]} 5. c4 {[%clk 01:30:41]} {[%emt 00:01:55]}
c6 {[%clk 01:32:18]} {[%emt 00:00:19]} 6. O-O {[%clk 01:30:06]} {[%emt
00:01:05]} O-O {[%clk 01:32:41]} {[%emt 00:00:08]} 7. Nc3 {[%clk 01:30:05]}
{[%emt 00:00:30]} dxc4 {[%clk 01:30:40]} {[%emt 00:02:31]} 8. a4 {[%clk
01:27:35]} {[%emt 00:03:00]} Na6 {[%clk 01:28:30]} {[%emt 00:02:40]} 9. Ne5
{[%clk 01:17:30]} {[%emt 00:10:35]} Nc7 {[%clk 01:24:27]} {[%emt 00:04:33]} 10.
Nxc4 {[%clk 01:15:06]} {[%emt 00:02:54]} Be6 {[%clk 01:20:52]} {[%emt
00:04:06]} 11. Ne5 {[%clk 01:13:40]} {[%emt 00:01:56]} Nfd5 {[%clk 01:19:46]}
{[%emt 00:01:36]} 12. Nf3 {[%clk 01:10:12]} {[%emt 00:03:57]} h6 {[%clk
01:18:47]} {[%emt 00:01:30]} 13. e4 {[%clk 01:08:44]} {[%emt 00:01:57]} Nxc3
{[%clk 01:17:50]} {[%emt 00:01:27]} 14. bxc3 {[%clk 01:09:08]} {[%emt
00:00:06]} Qc8 {[%clk 01:17:49]} {[%emt 00:00:32]} 15. Rb1 {[%clk 01:08:20]}
{[%emt 00:01:17]} Rb8 {[%clk 01:16:14]} {[%emt 00:02:04]} 16. Ba3 {[%clk
00:59:48]} {[%emt 00:09:03]} Re8 {[%clk 01:13:51]} {[%emt 00:02:53]} 17. Re1
{[%clk 00:58:27]} {[%emt 00:01:51]} Bg4 {[%clk 01:10:21]} {[%emt 00:04:00]} 18.
Qd2 {[%clk 00:57:34]} {[%emt 00:01:23]} Qd7 {[%clk 01:07:38]} {[%emt 00:03:13]}
19. Qf4 {[%clk 00:49:40]} {[%emt 00:08:24]} Bxf3 {[%clk 01:04:25]} {[%emt
00:03:43]} 20. Qxf3 {[%clk 00:48:49]} {[%emt 00:01:22]} e5 {[%clk 01:04:12]}
{[%emt 00:00:42]} 21. Red1 {[%clk 00:47:40]} {[%emt 00:01:38]} exd4 {[%clk
01:04:07]} {[%emt 00:00:36]} 22. cxd4 {[%clk 00:40:18]} {[%emt 00:07:52]} Ne6
{[%clk 00:59:31]} {[%emt 00:05:07]} 23. d5 {[%clk 00:35:21]} {[%emt 00:05:26]}
cxd5 {[%clk 00:59:09]} {[%emt 00:00:52]} 24. exd5 {[%clk 00:34:44]} {[%emt
00:01:08]} Nd4 {[%clk 00:58:23]} {[%emt 00:01:15]} 25. Qd3 {[%clk 00:32:22]}
{[%emt 00:02:52]} Ne2+ {[%clk 00:56:59]} {[%emt 00:01:55]} 26. Kf1 {[%clk
00:22:10]} {[%emt 00:10:40]} Nc3 {[%clk 00:56:55]} {[%emt 00:00:35]} 27. Rbc1
{[%clk 00:20:07]} {[%emt 00:02:34]} Nxd1 {[%clk 00:56:33]} {[%emt 00:00:51]} 28.
Qxd1 {[%clk 00:20:20]} {[%emt 00:00:18]} b5 {[%clk 00:55:26]} {[%emt 00:01:36]}
29. axb5 {[%clk 00:20:10]} {[%emt 00:00:40]} Qxb5+ {[%clk 00:55:28]} {[%emt
00:00:29]} 30. Kg1 {[%clk 00:20:31]} {[%emt 00:00:08]} Qb3 {[%clk 00:53:30]}
{[%emt 00:02:28]} 31. Bc5 {[%clk 00:18:58]} {[%emt 00:02:03]} a5 {[%clk
00:52:37]} {[%emt 00:01:23]} 32. Qd2 {[%clk 00:16:18]} {[%emt 00:03:10]} a4
{[%clk 00:51:25]} {[%emt 00:01:43]} 33. d6 {[%clk 00:16:32]} {[%emt 00:00:16]}
Rbd8 {[%clk 00:45:37]} {[%emt 00:06:17]} 34. Bd5 {[%clk 00:15:00]} {[%emt
00:02:01]} Qb5 {[%clk 00:43:09]} {[%emt 00:02:59]} 35. Qf4 {[%clk 00:13:43]}
{[%emt 00:01:47]} Rd7 {[%clk 00:39:55]} {[%emt 00:03:44]} 36. Ba3 {[%clk
00:13:05]} {[%emt 00:01:08]} Qxd5 {[%clk 00:39:58]} {[%emt 00:00:28]} 37. Qxa4
{[%clk 00:13:16]} {[%emt 00:00:19]} Red8 {[%clk 00:39:29]} {[%emt 00:00:59]} 38.
Re1 {[%clk 00:09:49]} {[%emt 00:03:57]} Be5 {[%clk 00:37:50]} {[%emt 00:02:08]}
39. Rd1 {[%clk 00:08:33]} {[%emt 00:01:45]} Qe6 {[%clk 00:37:55]} {[%emt
00:00:26]} 40. Re1 {[%clk 00:08:24]} {[%emt 00:00:39]} Qf6 {[%clk 00:36:58]}
{[%emt 00:01:28]} 41. Qc2 {[%clk 00:06:00]} {[%emt 00:02:54]} Bxd6 {[%clk
00:36:46]} {[%emt 00:00:41]} 42. Bb2 {[%clk 00:06:24]} {[%emt 00:00:06]} Qf5
{[%clk 00:34:39]} {[%emt 00:02:37]} 43. Qc3 {[%clk 00:06:46]} {[%emt 00:00:08]}
f6 {[%clk 00:34:52]} {[%emt 00:00:16]} 44. Re3 {[%clk 00:06:42]} {[%emt
00:00:34]} Be5 {[%clk 00:34:38]} {[%emt 00:00:44]} 45. Qb3+ {[%clk 00:06:02]}
{[%emt 00:01:10]} Kg7 {[%clk 00:34:49]} {[%emt 00:00:19]} 46. Bxe5 {[%clk
00:04:18]} {[%emt 00:02:14]} fxe5 {[%clk 00:34:21]} {[%emt 00:00:58]} 0-1

[Event "2. Itzehoer Schach Open"]
[Site "Itzehoe, Germany"]
[Date "2023.04.29"]
[Round "1.28"]
[White "Wusterack, Paul"]
[Black "Frahm, Ben Jonas"]
[Result "1-0"]
[TimeControl "90 min / 40 Züge + 30 min + 30 Sek pro Zug"]
[WhiteElo "1647"]
[BlackElo "1406"]

1. e4 {[%clk 01:30:57]} {[%emt 00:00:02]} e5 {[%clk 01:30:56]} {[%emt
00:00:04]} 2. Nf3 {[%clk 01:31:22]} {[%emt 00:00:05]} Nf6 {[%clk 01:31:18]}
{[%emt 00:00:08]} 3. Nc3 {[%clk 01:31:05]} {[%emt 00:00:46]} Nc6 {[%clk
01:31:41]} {[%emt 00:00:07]} 4. Be2 {[%clk 01:22:56]} {[%emt 00:08:39]} d5
{[%clk 01:28:31]} {[%emt 00:03:40]} 5. exd5 {[%clk 01:21:51]} {[%emt 00:01:35]}
Nxd5 {[%clk 01:28:49]} {[%emt 00:00:13]} 6. Nxd5 {[%clk 01:16:45]} {[%emt
00:05:35]} Qxd5 {[%clk 01:29:08]} {[%emt 00:00:11]} 7. d3 {[%clk 01:17:05]}
{[%emt 00:00:10]} Bd6 {[%clk 01:27:26]} {[%emt 00:02:12]} 8. Be3 {[%clk
01:04:44]} {[%emt 00:12:51]} b6 {[%clk 01:21:31]} {[%emt 00:06:25]} 9. c3
{[%clk 00:54:48]} {[%emt 00:10:26]} Bc5 {[%clk 01:14:25]} {[%emt 00:07:36]} 10.
Bxc5 {[%clk 00:30:48]} {[%emt 00:24:30]} Qxc5 {[%clk 01:14:47]} {[%emt
00:00:08]} 11. O-O {[%clk 00:30:07]} {[%emt 00:01:11]} Bb7 {[%clk 01:10:41]}
{[%emt 00:04:35]} 12. Qb3 {[%clk 00:28:17]} {[%emt 00:02:21]} O-O {[%clk
01:00:40]} {[%emt 00:10:30]} 13. Rad1 {[%clk 00:27:29]} {[%emt 00:01:19]} Rad8
{[%clk 01:00:17]} {[%emt 00:00:53]} 14. Rfe1 {[%clk 00:27:33]} {[%emt
00:00:26]} h6 {[%clk 00:59:32]} {[%emt 00:01:14]} 15. Nd2 {[%clk 00:26:37]}
{[%emt 00:01:26]} Qd6 {[%clk 00:55:58]} {[%emt 00:04:04]} 16. Nc4 {[%clk
00:23:41]} {[%emt 00:03:26]} Qg6 {[%clk 00:55:16]} {[%emt 00:01:12]} 17. Bf1
{[%clk 00:22:55]} {[%emt 00:01:15]} Rfe8 {[%clk 00:51:49]} {[%emt 00:03:58]} 18.
Re3 {[%clk 00:21:44]} {[%emt 00:01:42]} Re6 {[%clk 00:48:11]} {[%emt 00:04:08]}
19. Rde1 {[%clk 00:20:31]} {[%emt 00:01:42]} Rde8 {[%clk 00:47:47]} {[%emt
00:00:53]} 20. Rg3 {[%clk 00:17:23]} {[%emt 00:03:38]} Qh7 {[%clk 00:42:55]}
{[%emt 00:05:22]} 21. Qc2 {[%clk 00:07:47]} {[%emt 00:10:07]} Rg6 {[%clk
00:41:00]} {[%emt 00:02:25]} 22. d4 {[%clk 00:07:31]} {[%emt 00:00:45]} Rxg3
{[%clk 00:39:29]} {[%emt 00:02:00]} 23. Qxh7+ {[%clk 00:07:59]} {[%emt
00:00:03]} Kxh7 {[%clk 00:39:49]} {[%emt 00:00:10]} 24. hxg3 {[%clk 00:08:24]}
{[%emt 00:00:05]} e4 {[%clk 00:39:57]} {[%emt 00:00:23]} 25. f3 {[%clk
00:04:31]} {[%emt 00:04:23]} Nd8 {[%clk 00:39:40]} {[%emt 00:00:46]} 26. Bd3
{[%clk 00:03:52]} {[%emt 00:01:09]} b5 {[%clk 00:38:36]} {[%emt 00:01:35]} 27.
Nd2 {[%clk 00:04:02]} {[%emt 00:00:20]} a6 {[%clk 00:38:42]} {[%emt 00:00:24]}
28. fxe4 {[%clk 00:03:27]} {[%emt 00:01:05]} f5 {[%clk 00:38:54]} {[%emt
00:00:17]} 29. Re2 {[%clk 00:02:34]} {[%emt 00:01:24]} fxe4 {[%clk 00:38:54]}
{[%emt 00:00:30]} 30. Bxe4+ {[%clk 00:01:53]} {[%emt 00:01:11]} Bxe4 {[%clk
00:39:17]} {[%emt 00:00:06]} 31. Rxe4 {[%clk 00:02:19]} {[%emt 00:00:04]} Rf8
{[%clk 00:38:40]} {[%emt 00:01:08]} 32. Re7 {[%clk 00:02:33]} {[%emt 00:00:16]}
Rf7 {[%clk 00:38:54]} {[%emt 00:00:15]} 33. Rxf7 {[%clk 00:02:52]} {[%emt
00:00:11]} Nxf7 {[%clk 00:39:19]} {[%emt 00:00:04]} 34. Ne4 {[%clk 00:03:03]}
{[%emt 00:00:20]} Nd6 {[%clk 00:39:03]} {[%emt 00:00:46]} 35. Nd2 {[%clk
00:02:17]} {[%emt 00:01:17]} Kg6 {[%clk 00:39:17]} {[%emt 00:00:15]} 36. Kf2
{[%clk 00:02:28]} {[%emt 00:00:19]} Kf5 {[%clk 00:39:40]} {[%emt 00:00:07]} 37.
Kf3 {[%clk 00:02:35]} {[%emt 00:00:23]} g5 {[%clk 00:39:48]} {[%emt 00:00:22]}
38. g4+ {[%clk 00:02:49]} {[%emt 00:00:17]} Ke6 {[%clk 00:40:12]} {[%emt
00:00:06]} 39. Ne4 {[%clk 00:02:46]} {[%emt 00:00:33]} Nc4 {[%clk 00:40:10]}
{[%emt 00:00:31]} 40. b3 {[%clk 00:02:56]} {[%emt 00:00:21]} Nb6 {[%clk
00:40:03]} {[%emt 00:00:37]} 41. Nc5+ {[%clk 00:02:29]} {[%emt 00:00:57]} Kd6
{[%clk 00:40:26]} {[%emt 00:00:06]} 42. Nxa6 {[%clk 00:01:15]} {[%emt
00:01:44]} Nd5 {[%clk 00:40:32]} {[%emt 00:00:24]} 43. c4 {[%clk 00:01:31]}
{[%emt 00:00:14]} Nc3 {[%clk 00:40:22]} {[%emt 00:00:40]} 44. Nc5 {[%clk
00:20:03]} {[%emt 00:11:57]} bxc4 {[%clk 01:10:00]} {[%emt 00:00:53]} 45. Ne4+
{[%clk 00:17:14]} {[%emt 00:03:20]} Nxe4 {[%clk 01:10:19]} {[%emt 00:00:11]} 46.
Kxe4 {[%clk 00:17:38]} {[%emt 00:00:05]} cxb3 {[%clk 01:09:35]} {[%emt
00:01:15]} 47. axb3 {[%clk 00:17:48]} {[%emt 00:00:20]} Ke6 {[%clk 01:09:01]}
{[%emt 00:01:04]} 48. d5+ {[%clk 00:17:26]} {[%emt 00:00:52]} Kd6 {[%clk
01:09:25]} {[%emt 00:00:06]} 49. Kd4 {[%clk 00:17:18]} {[%emt 00:00:38]} Ke7
{[%clk 01:09:30]} {[%emt 00:00:25]} 50. Kc5 {[%clk 00:17:40]} {[%emt 00:00:07]}
Kf6 {[%clk 01:09:22]} {[%emt 00:00:38]} 51. d6 {[%clk 00:17:31]} {[%emt
00:00:39]} cxd6+ {[%clk 01:09:45]} {[%emt 00:00:07]} 52. Kxd6 {[%clk 00:17:54]}
{[%emt 00:00:08]} Kg6 {[%clk 01:10:08]} {[%emt 00:00:07]} 53. b4 {[%clk
00:18:16]} {[%emt 00:00:07]} h5 {[%clk 01:10:33]} {[%emt 00:00:06]} 54. gxh5
{[%clk 00:18:39]} {[%emt 00:00:06]} Kxh5 {[%clk 01:10:57]} {[%emt 00:00:06]} 55.
b5 {[%clk 00:19:02]} {[%emt 00:00:08]} Kh4 {[%clk 01:11:16]} {[%emt 00:00:10]}
56. b6 {[%clk 00:19:22]} {[%emt 00:00:10]} Kg3 {[%clk 01:11:33]} {[%emt
00:00:13]} 57. Ke5 {[%clk 00:19:12]} {[%emt 00:00:40]} g4 {[%clk 01:11:47]}
{[%emt 00:00:16]} 58. Kf5 {[%clk 00:19:33]} 1-0